{"text_format":"1","workbook":"xlsx","n_sheets":3,"sheets":["Instrumentbord","Utstyrsliste","Pivot Data"],"not_rendered":{"charts":0,"images":0,"macros":1,"external_links":0,"defined_names":13,"comments":0,"pivot_tables":1},"unopened":[],"bounds":{"document_bytes":16777216,"sheet_cells":100000,"rows_first":2000,"rows_last":500,"rows_between":2000,"halvings":0,"cell_chars":16384,"cell_head_chars":4096},"cells_cut":0,"cells_raw":0,"read":"whole","date_system":"1900"}

{"sheet":"Instrumentbord","index":0,"n_rows":19,"n_cols":6,"rows_kept":19,"cut":false,"hidden":false,"merged":[]}
[null,"Instrumentbord"]
[]
[null,null,null,null,null,"Totalt antall"]
[null,null,null,null,null,{"$f":"GETPIVOTDATA(\"Leverandør \",'Pivot Data'!$B11)","v":3}]
[]
[null,null,null,null,null,"Total månedlig kostnad"]
[null,null,null,null,null,{"$f":"GETPIVOTDATA(\"Total månedlig kostnad \",'Pivot Data'!$B11)","v":1765.5943035068672}]
[]
[null,null,null,null,null,"Driftskostnader"]
[null,null,null,null,null,{"$f":"GETPIVOTDATA(\"Månedlige driftskostnader\",'Pivot Data'!$B11)","v":605}]
[]
[null,null,null,null,null,"Månedlig avskrivning"]
[null,null,null,null,null,{"$f":"GETPIVOTDATA(\"Månedlig avskrivning\",'Pivot Data'!$B11)","v":659.72222222222217}]
[]
[null,null,null,null,null,"Betalingsbeløp"]
[null,null,null,null,null,{"$f":"GETPIVOTDATA(\"Månedlig betaling \",'Pivot Data'!$B11)","v":1160.5943035068672}]
[]
[null,null,null,null,null,"Gjeldende verdi"]
[null,null,null,null,null,{"$f":"GETPIVOTDATA(\"Gjeldende verdi\",'Pivot Data'!$B11)","v":37272.374429223739}]

{"sheet":"Utstyrsliste","index":1,"n_rows":10,"n_cols":20,"rows_kept":10,"cut":false,"hidden":false,"merged":[]}
[null,"Utstyrsliste"]
[]
[null,null,null,"Utheves når månedlige betalinger er mindre enn: ",20]
[]
[null,"Aktive eller serienummer","Beskrivelse (merke og modell)","Plassering","Betingelse","Leverandør","Gjenværende driftsår ","Opprinnelig verdi","Nedbetaling","Datp kjøpt eller leaset","Lånetid\n(år)","Lånerente","Månedlige driftskostnader","Forventet verdi ved kontraktsslutt","Gjenstående månedlige betalinger","Månedlig betaling","Total månedlig kostnad","Årlig avskrivning\n(rett linje)","Månedlig avskrivning\n(rett linje)","Gjeldende verdi"]
[null,123,"Merke modell 1","Hovedavdeling","God","Lokal",5,30000,5000,"2011-01-15",4,0.1,200,20000,{"$f":"IFERROR(SUMPRODUCT(--(DAY(ROW(OFFSET($A$1,,,DATE(YEAR(Utstyr[[#This Row],[Datp kjøpt eller leaset]])+Utstyr[[#This Row],[Lånetid\n(år)]],MONTH(Utstyr[[#This Row],[Datp kjøpt eller leaset]])-1,DAY(Utstyr[[#This Row],[Datp kjøpt eller leaset]]))-TODAY()))+DATE(YEAR(Utstyr[[#This Row],[Datp kjøpt eller leaset]])+Utstyr[[#This Row],[Lånetid\n(år)]],MONTH(Utstyr[[#This Row],[Datp kjøpt eller leaset]]),DAY(Utstyr[[#This Row],[Datp kjøpt eller leaset]]))-1)=DAY(Utstyr[[#This Row],[Datp kjøpt eller leaset]]))),0)","v":25},{"$f":"IFERROR(-(Utstyr[Opprinnelig verdi]>0)*(Utstyr[Opprinnelig verdi]<>Utstyr[Nedbetaling])*PMT(Utstyr[Lånerente]/MånederIÅret,Utstyr[Lånetid\n(år)]*MånederIÅret,Utstyr[Opprinnelig verdi]-Utstyr[Nedbetaling]),0)","v":634.06458586867973},{"$f":"Utstyr[[#This Row],[Månedlig betaling]]+Utstyr[Månedlige driftskostnader]","v":834.06458586867973},{"$f":"IFERROR((Utstyr[Opprinnelig verdi]>0)*SLN(Utstyr[Opprinnelig verdi],Utstyr[Forventet verdi ved kontraktsslutt],Utstyr[Lånetid\n(år)]),0)","v":2500},{"$f":"IFERROR(Utstyr[Årlig avskrivning\n(rett linje)]/MånederIÅret,0)","v":208.33333333333334},{"$f":"IFERROR(Utstyr[Opprinnelig verdi]-(Utstyr[Årlig avskrivning\n(rett linje)]*((TODAY()-Utstyr[Datp kjøpt eller leaset])/DagerIÅret)),0)","v":25280.821917808218}]
[null,234,"Merke modell 2","Hovedavdeling","God","Lokal",4,12500,1500,"2011-03-10",3,7.7499999999999999E-2,120,3000,{"$f":"IFERROR(SUMPRODUCT(--(DAY(ROW(OFFSET($A$1,,,DATE(YEAR(Utstyr[[#This Row],[Datp kjøpt eller leaset]])+Utstyr[[#This Row],[Lånetid\n(år)]],MONTH(Utstyr[[#This Row],[Datp kjøpt eller leaset]])-1,DAY(Utstyr[[#This Row],[Datp kjøpt eller leaset]]))-TODAY()))+DATE(YEAR(Utstyr[[#This Row],[Datp kjøpt eller leaset]])+Utstyr[[#This Row],[Lånetid\n(år)]],MONTH(Utstyr[[#This Row],[Datp kjøpt eller leaset]]),DAY(Utstyr[[#This Row],[Datp kjøpt eller leaset]]))-1)=DAY(Utstyr[[#This Row],[Datp kjøpt eller leaset]]))),0)","v":15},{"$f":"IFERROR(-(Utstyr[Opprinnelig verdi]>0)*(Utstyr[Opprinnelig verdi]<>Utstyr[Nedbetaling])*PMT(Utstyr[Lånerente]/MånederIÅret,Utstyr[Lånetid\n(år)]*MånederIÅret,Utstyr[Opprinnelig verdi]-Utstyr[Nedbetaling]),0)","v":343.43280007691891},{"$f":"Utstyr[[#This Row],[Månedlig betaling]]+Utstyr[Månedlige driftskostnader]","v":463.43280007691891},{"$f":"IFERROR((Utstyr[Opprinnelig verdi]>0)*SLN(Utstyr[Opprinnelig verdi],Utstyr[Forventet verdi ved kontraktsslutt],Utstyr[Lånetid\n(år)]),0)","v":3166.6666666666665},{"$f":"IFERROR(Utstyr[Årlig avskrivning\n(rett linje)]/MånederIÅret,0)","v":263.88888888888886},{"$f":"IFERROR(Utstyr[Opprinnelig verdi]-(Utstyr[Årlig avskrivning\n(rett linje)]*((TODAY()-Utstyr[Datp kjøpt eller leaset])/DagerIÅret)),0)","v":6990.8675799086759}]
[null,345,"Merke modell 2","Avdeling 1","OK","Annet",1,10000,2500,"2010-09-15",4,0.08,285,1000,{"$f":"IFERROR(SUMPRODUCT(--(DAY(ROW(OFFSET($A$1,,,DATE(YEAR(Utstyr[[#This Row],[Datp kjøpt eller leaset]])+Utstyr[[#This Row],[Lånetid\n(år)]],MONTH(Utstyr[[#This Row],[Datp kjøpt eller leaset]])-1,DAY(Utstyr[[#This Row],[Datp kjøpt eller leaset]]))-TODAY()))+DATE(YEAR(Utstyr[[#This Row],[Datp kjøpt eller leaset]])+Utstyr[[#This Row],[Lånetid\n(år)]],MONTH(Utstyr[[#This Row],[Datp kjøpt eller leaset]]),DAY(Utstyr[[#This Row],[Datp kjøpt eller leaset]]))-1)=DAY(Utstyr[[#This Row],[Datp kjøpt eller leaset]]))),0)","v":21},{"$f":"IFERROR(-(Utstyr[Opprinnelig verdi]>0)*(Utstyr[Opprinnelig verdi]<>Utstyr[Nedbetaling])*PMT(Utstyr[Lånerente]/MånederIÅret,Utstyr[Lånetid\n(år)]*MånederIÅret,Utstyr[Opprinnelig verdi]-Utstyr[Nedbetaling]),0)","v":183.09691756126861},{"$f":"Utstyr[[#This Row],[Månedlig betaling]]+Utstyr[Månedlige driftskostnader]","v":468.09691756126858},{"$f":"IFERROR((Utstyr[Opprinnelig verdi]>0)*SLN(Utstyr[Opprinnelig verdi],Utstyr[Forventet verdi ved kontraktsslutt],Utstyr[Lånetid\n(år)]),0)","v":2250},{"$f":"IFERROR(Utstyr[Årlig avskrivning\n(rett linje)]/MånederIÅret,0)","v":187.5},{"$f":"IFERROR(Utstyr[Opprinnelig verdi]-(Utstyr[Årlig avskrivning\n(rett linje)]*((TODAY()-Utstyr[Datp kjøpt eller leaset])/DagerIÅret)),0)","v":5000.6849315068494}]
[null,"Total",null,null,null,null,{"$f":"SUBTOTAL(101,Utstyr[[Gjenværende driftsår ]])","v":4.5},{"$f":"SUBTOTAL(109,Utstyr[Opprinnelig verdi])","v":42500},{"$f":"SUBTOTAL(109,Utstyr[Nedbetaling])","v":6500},null,{"$f":"SUBTOTAL(101,Utstyr[Lånetid\n(år)])","v":3.5},{"$f":"SUBTOTAL(101,Utstyr[Lånerente])","v":8.8749999999999996E-2},{"$f":"SUBTOTAL(109,Utstyr[Månedlige driftskostnader])","v":320},{"$f":"SUBTOTAL(109,Utstyr[Forventet verdi ved kontraktsslutt])","v":23000},{"$f":"SUBTOTAL(101,Utstyr[Gjenstående månedlige betalinger])","v":20},{"$f":"SUBTOTAL(109,Utstyr[Månedlig betaling])","v":977.49738594559858},{"$f":"SUBTOTAL(109,Utstyr[Total månedlig kostnad])","v":1297.4973859455986},{"$f":"SUBTOTAL(101,Utstyr[Årlig avskrivning\n(rett linje)])","v":2833.333333333333},{"$f":"SUBTOTAL(101,Utstyr[Månedlig avskrivning\n(rett linje)])","v":236.11111111111109},{"$f":"SUBTOTAL(109,Utstyr[Gjeldende verdi])","v":32271.689497716892}]
[null,"Totalt",null,null,null,null,{"$f":"SUBTOTAL(101,Utstyr[[Gjenværende driftsår ]])","v":4.5},{"$f":"SUBTOTAL(109,Utstyr[Opprinnelig verdi])","v":42500},{"$f":"SUBTOTAL(109,Utstyr[Nedbetaling])","v":6500},null,{"$f":"SUBTOTAL(101,Utstyr[Lånetid\n(år)])","v":3.5},{"$f":"SUBTOTAL(101,Utstyr[Lånerente])","v":8.8749999999999996E-2},{"$f":"SUBTOTAL(109,Utstyr[Månedlige driftskostnader])","v":320},{"$f":"SUBTOTAL(109,Utstyr[Forventet verdi ved kontraktsslutt])","v":23000}]

{"sheet":"Pivot Data","index":2,"n_rows":17,"n_cols":8,"rows_kept":17,"cut":false,"hidden":true,"merged":[]}
[null,"Pivot Data"]
[null,"Dette arket må være skjult. Hvis pivottabellstrukturen på dette arket endres, kan det føre til feil på Instrumentbord-slicerne."]
[]
[]
[]
[null,"Beskrivelse (merke og modell)","(Alle)"]
[null,"Betingelse","(Alle)"]
[null,"Plassering","(Alle)"]
[null,"Gjenværende driftsår ","(Alle)"]
[null,"Opprinnelig verdi","(Alle)"]
[null,"Lånetid\n(år)","(Alle)"]
[]
[null,"Radetiketter","Leverandør ","Månedlige driftskostnader ","Månedlig betaling ","Total månedlig kostnad ","Månedlig avskrivning"," Gjeldende verdi "]
[null,123,1,200,634.06458586867973,834.06458586867973,208.33333333333334,25280.821917808218]
[null,234,1,120,343.43280007691891,463.43280007691891,263.88888888888886,6990.8675799086759]
[null,345,1,285,183.09691756126861,468.09691756126858,187.5,5000.6849315068494]
[null,"Totalsum",3,605,1160.5943035068672,1765.5943035068672,659.72222222222217,37272.374429223739]